bitfinex-derivatives/quotes_ETHF0:USTF0_20250329
["timestamp","ask_amount","ask_price","bid_price","bid_amount"]
[1743286708166,2.5276,1817.7,1817.6,4.99574357]
[1743286708659,2.5276,1817.7,1817.6,4.99474357]
[1743286709655,2.5276,1817.7,1817.6,6.09551357]
[1743286713663,5.7354,1817.7,1817.6,6.09551357]
[1743286713863,2.5276,1817.7,1817.6,6.09551357]
[1743286720370,5.7354,1817.7,1817.6,0.00824357]
[1743286722779,1.10089,1817.4,1817.3,6.7568]
[1743286722979,1.10089,1817.4,1817.3,3.2078]
[1743286723173,1.10089,1817.4,1817.2,4.9379]
[1743286723174,1.10095,1817.3,1817.2,4.9379]
[1743286723373,4.04235,1817.3,1817.2,4.9379]
[1743286731786,3.2078,1817.5,1817.2,4.9379]
[1743286731987,1.10085,1817.5,1817.3,5.3656]
[1743286732183,1.4723,1817.6,1817.5,1.10083]
[1743286732380,21.51099548,1817.8,1817.5,3.549]
[1743286732582,22.61164548,1817.8,1817.6,2.54614]
[1743286732886,22.61164548,1817.8,1817.7,2.2004]
[1743286733086,24.08394548,1817.8,1817.7,2.8936]
[1743286733485,2.57295,1817.8,1817.7,2.8936]
[1743286734387,2.57295,1817.8,1817.7,3.9943]
[1743286735189,1.4723,1817.8,1817.7,3.9943]
[1743286736091,2.57294,1817.8,1817.7,3.9943]
[1743286736285,2.57294,1817.8,1817.7,2.8936]
[1743286737384,2.57294,1817.8,1817.7,3.9943]
[1743286738091,1.4723,1817.8,1817.7,3.9943]
[1743286738592,2.57294,1817.8,1817.7,3.9943]
[1743286739186,1.4723,1817.8,1817.7,3.9943]
[1743286739790,4.31662357,1817.9,1817.7,2.8936]
[1743286739989,5.71362357,1817.9,1817.8,1.4431]
[1743286741496,5.71362357,1817.9,1817.8,2.54374]
[1743286742493,5.71362357,1817.9,1817.8,1.4431]
[1743286742790,5.71362357,1817.9,1817.8,2.54374]
[1743286743290,2.50582357,1817.9,1817.8,2.54374]
[1743286743481,5.71362357,1817.9,1817.8,2.54374]
[1743286743992,4.61304357,1817.9,1817.8,2.54374]
[1743286744990,5.71362357,1817.9,1817.8,2.54374]
[1743286745391,4.61304357,1817.9,1817.8,2.54374]
[1743286745590,3.21604357,1817.9,1817.8,6.09174]
[1743286745784,3.21604357,1817.9,1817.8,9.29954]
[1743286745785,0.00824357,1817.9,1817.8,9.29954]
[1743286746692,3.2078,1818.3,1818.2,1.1004]
[1743286746994,3.2078,1818.3,1818.2,4.6484]
[1743286747192,4.30814,1818.3,1818.2,3.548]
[1743286747697,4.30814,1818.3,1818.2,6.1399]
[1743286747897,3.2078,1818.3,1818.2,6.1399]
[1743286748698,5.72704,1818.3,1818.2,6.1399]
[1743286749095,2.51924,1818.3,1818.2,6.1399]
[1743286749296,5.72704,1818.3,1818.2,6.1399]
[1743286749493,5.72704,1818.3,1818.2,5.0395]
[1743286750695,4.6267,1818.3,1818.2,6.1399]
[1743286752598,5.72704,1818.3,1818.2,6.1399]
[1743286752791,4.6267,1818.3,1818.2,6.1399]
[1743286754097,1.4189,1818.3,1818.2,6.1399]
[1743286755390,2.51924,1818.3,1818.2,6.1399]
[1743286755591,1.4189,1818.3,1818.2,6.1399]
[1743286761696,2.51924,1818.3,1818.2,6.1399]
[1743286763500,1.4189,1818.3,1818.2,6.1399]
[1743286764300,3.21604357,1818.4,1818.3,1.10034]
[1743286764502,4.31632357,1818.4,1818.3,3.29404]
[1743286764697,2.49802357,1818.4,1818.3,3.29404]
[1743286767406,2.49802357,1818.4,1818.3,2.1937]
[1743286767805,2.49802357,1818.4,1818.3,3.29404]
[1743286769008,2.49802357,1818.4,1818.3,2.1937]
[1743286774408,2.49802357,1818.4,1818.3,1.4497]
[1743286775013,1.39774357,1818.4,1818.3,2.55004]
[1743286775216,1.39774357,1818.4,1818.3,3.30145562]
[1743286778008,3.2078,1818.6,1818.3,3.30145562]
[1743286778212,4.6845,1818.6,1818.5,1.10022]
[1743286778416,3.2078,1818.6,1818.5,4.64622]
[1743286778914,3.2078,1818.6,1818.5,6.14922]
[1743286779422,3.2078,1818.6,1818.5,6.15963562]
[1743286781817,1.48494357,1818.7,1818.6,1.10016]
[1743286782010,1.48494357,1818.7,1818.6,2.59206]
[1743286782214,1.48494357,1818.7,1818.6,2.60247562]
[1743286782414,1.48494357,1818.7,1818.6,3.29577562]
[1743286785824,0.00824357,1818.7,1818.6,3.29577562]
[1743286791024,24.71879548,1819.1,1819.0,1.09992]
[1743286791229,24.71879548,1819.1,1819.0,4.64492]
[1743286791428,26.07889548,1819.1,1819.0,4.65533562]
[1743286791822,26.07889548,1819.1,1819.0,6.10003562]
[1743286792019,4.5679,1819.1,1819.0,6.10003562]
[1743286792220,4.5679,1819.1,1819.0,6.84423562]
[1743286792424,3.2078,1819.1,1819.0,6.84423562]
[1743286792933,2.08154357,1819.2,1819.1,1.09986]
[1743286793137,2.08154357,1819.2,1819.1,2.59946]
[1743286793431,2.08154357,1819.2,1819.1,2.60987562]
[1743286794133,0.00824357,1819.2,1819.1,2.60987562]
[1743286796034,0.00824357,1819.2,1819.1,3.16027562]
[1743286796333,0.00824357,1819.2,1819.1,2.60987562]
[1743286796728,0.00824357,1819.2,1819.1,3.16027562]
[1743286796931,0.00824357,1819.2,1819.1,2.60987562]
[1743286797831,0.00824357,1819.2,1819.1,3.16027562]
[1743286798031,1.37534357,1819.2,1819.1,2.60987562]
[1743286798333,1.37534357,1819.2,1819.1,3.16027562]
[1743286798733,2.47514357,1819.2,1819.1,0.01041562]
[1743286798931,2.47514357,1819.2,1819.1,3.55441562]
[1743286799132,2.47514357,1819.2,1819.1,4.10481562]
[1743286799546,2.47514357,1819.2,1819.1,3.55441562]
[1743286799839,2.47514357,1819.2,1819.1,4.10481562]
[1743286800038,1.37534357,1819.2,1819.1,4.65427562]
[1743286800443,2.47514357,1819.2,1819.1,4.65427562]
[1743286800644,5.68294357,1819.2,1819.1,3.55441562]
[1743286800940,1.37534357,1819.2,1819.1,4.65427562]
[1743286805434,5.68294357,1819.2,1819.1,0.01041562]
[1743286805733,5.68294357,1819.2,1819.1,3.55341562]
[1743286806133,5.68294357,1819.2,1819.1,0.01041562]
[1743286807637,5.68294357,1819.2,1819.1,1.11027562]
[1743286807838,1.37534357,1819.2,1819.1,1.11027562]
[1743286808247,1.37534357,1819.2,1819.1,2.55277562]
[1743286808438,2.47514357,1819.2,1819.1,2.55277562]
[1743286808640,2.47514357,1819.2,1819.1,0.01041562]
[1743286808946,5.68294357,1819.2,1819.1,0.01041562]
[1743286814448,1.37534357,1819.2,1819.1,1.11027562]
[1743286814741,1.37534357,1819.2,1819.1,2.60757562]
[1743286817554,2.47514357,1819.2,1819.1,0.01041562]
[1743286817754,5.68294357,1819.2,1819.1,0.01041562]
[1743286819856,4.58314357,1819.2,1819.1,1.11027562]
[1743286820152,5.68294357,1819.2,1819.1,1.11027562]
[1743286820553,5.68294357,1819.2,1819.1,2.49607562]
[1743286822758,5.68294357,1819.2,1819.1,1.39621562]
[1743286823161,2.47514357,1819.2,1819.1,1.39621562]
[1743286824563,2.47514357,1819.2,1819.1,2.49607562]
[1743286824752,2.47514357,1819.2,1819.1,1.39621562]
[1743286824952,2.47514357,1819.2,1819.1,2.49607562]
[1743286825358,1.37534357,1819.2,1819.1,2.49607562]
[1743286827055,2.47514357,1819.2,1819.1,2.49607562]
[1743286828062,1.37534357,1819.2,1819.1,2.49607562]
[1743286828760,2.47514357,1819.2,1819.1,2.49607562]
[1743286829864,0.00824357,1819.2,1819.1,2.49607562]
[1743286831260,0.00824357,1819.2,1819.1,6.03807562]
[1743286836059,0.00824357,1819.2,1819.1,6.58847562]
[1743286836568,0.00824357,1819.2,1819.1,6.03807562]
[1743286836770,0.00824357,1819.2,1819.1,6.58847562]
[1743286837464,0.00824357,1819.2,1819.1,6.03807562]
[1743286837870,0.00824357,1819.2,1819.1,6.58847562]
[1743286838063,0.00824357,1819.2,1819.1,6.03807562]
[1743286838469,0.00824357,1819.2,1819.1,6.58847562]
[1743286838768,0.00824357,1819.2,1819.1,6.03807562]
[1743286839163,0.00824357,1819.2,1819.1,6.58847562]
[1743286839359,0.00824357,1819.2,1819.1,6.03807562]
[1743286839575,0.00824357,1819.2,1819.1,6.58847562]
[1743286839771,0.00824357,1819.2,1819.1,6.03807562]
[1743286840162,0.00824357,1819.2,1819.1,6.58847562]
[1743286840366,0.00824357,1819.2,1819.1,6.03807562]
[1743286841664,0.00824357,1819.2,1819.1,6.58847562]
[1743286842273,0.00824357,1819.2,1819.1,6.03807562]
[1743286842774,0.00824357,1819.2,1819.1,6.58847562]
[1743286843675,0.00824357,1819.2,1819.1,6.03807562]
[1743286844070,0.00824357,1819.2,1819.1,6.58847562]
[1743286844276,0.00824357,1819.2,1819.1,6.03807562]
[1743286844576,0.00824357,1819.2,1819.1,6.58847562]
[1743286844773,0.00824357,1819.2,1819.1,6.03807562]
[1743286845174,0.00824357,1819.2,1819.1,6.58847562]
[1743286845371,0.00824357,1819.2,1819.1,6.03807562]
[1743286845875,0.00824357,1819.2,1819.1,6.58847562]
[1743286846076,0.00824357,1819.2,1819.1,6.03807562]
[1743286846676,0.00824357,1819.2,1819.1,6.58847562]
[1743286847071,0.00824357,1819.2,1819.1,6.03807562]
[1743286847278,0.00824357,1819.2,1819.1,6.58847562]
[1743286847571,0.00824357,1819.2,1819.1,6.03807562]
[1743286847979,0.00824357,1819.2,1819.1,6.58847562]
[1743286848190,0.00824357,1819.2,1819.1,6.03807562]
[1743286851189,0.00824357,1819.2,1819.1,6.58847562]
[1743286852480,0.00824357,1819.2,1819.1,6.03807562]
[1743286852875,0.00824357,1819.2,1819.1,6.58847562]
[1743286854584,1.42064357,1819.2,1819.1,6.58847562]
[1743286856182,1.42064357,1819.2,1819.1,6.03807562]
[1743286856385,1.42064357,1819.2,1819.1,6.58847562]
[1743286856580,1.42064357,1819.2,1819.1,3.04647562]
[1743286856880,5.72824357,1819.2,1819.1,0.01041562]
[1743286857076,5.72824357,1819.2,1818.8,54.0048]
[1743286857077,7.12844357,1819.2,1818.8,54.0048]
[1743286857283,7.12844357,1819.2,1818.5,4.30798]
[1743286857284,1.10008,1818.8,1818.5,4.30798]
[1743286857583,3.34541,1818.7,1818.5,6.7488]
[1743286857786,1.4997,1818.6,1818.5,6.7488]
[1743286858277,2.59986,1818.6,1818.5,3.541]
[1743286860283,3.33516,1818.6,1818.5,3.541]
[1743286864486,24.88896611,1818.6,1818.5,3.541]
[1743286871179,24.88896611,1818.6,1818.2,50.793]
[1743286871180,23.78880611,1818.6,1818.2,50.793]
[1743286871379,3.2078,1818.3,1818.1,0.00824357]
[1743286871585,4.0099,1818.2,1818.1,3.55024357]
[1743286871785,2.9095,1818.2,1818.1,4.65070357]
[1743286871989,4.0099,1818.2,1818.1,4.65070357]
[1743286873287,4.0099,1818.2,1818.1,3.55024357]
[1743286873588,1.4632,1818.2,1818.1,4.65070357]
[1743286873790,1.4632,1818.2,1818.1,7.48600357]
[1743286874991,2.55466,1818.5,1818.1,6.38554357]
[1743286875186,1.4825,1818.4,1818.3,1.10033]
[1743286876085,1.4825,1818.4,1818.3,2.55193]
[1743286878088,2.58278,1818.4,1818.3,1.4516]
[1743286878487,2.58278,1818.4,1818.3,2.55194]
[1743286880794,0.7047,1818.5,1818.4,1.10028]
[1743286880995,21.55380611,1818.6,1818.5,1.10022]
[1743286881193,23.37686611,1818.6,1818.5,1.10022]
[1743286881399,23.37686611,1818.6,1818.5,2.46762]
[1743286882300,23.37686611,1818.6,1818.5,3.15242]
[1743286882798,23.37686611,1818.6,1818.5,2.0522]
[1743286884196,23.37686611,1818.6,1818.5,3.15242]
[1743286884396,23.37686611,1818.6,1818.5,2.0522]
[1743286885192,21.55380611,1818.6,1818.5,3.15242]
[1743286889796,1.10014,1818.7,1818.5,3.15242]
[1743286889997,1.10014,1818.7,1818.6,1.3763]
[1743286890300,1.10014,1818.7,1818.6,2.47646]
[1743286890902,1.10014,1818.7,1818.6,1.3763]
[1743286891595,1.78316,1818.8,1818.6,2.47642]
[1743286892103,1.78316,1818.8,1818.7,1.502]
[1743286894806,3.15256,1818.8,1818.7,1.502]
[1743286895207,1.1001,1818.7,1818.6,1.10012]
[1743286895406,2.4695,1818.7,1818.6,2.60762]
[1743286897697,2.4695,1818.7,1818.6,1.5075]
[1743286900411,1.3694,1818.7,1818.6,2.60766]
[1743286901096,2.4695,1818.7,1818.6,2.60766]
[1743286903403,1.3694,1818.7,1818.6,2.60766]
[1743286903602,21.55380611,1818.9,1818.6,1.5075]
[1743286903805,1.4606,1818.7,1818.6,1.10011]
[1743286904005,1.4606,1818.7,1818.6,4.64111]
[1743286906715,23.07058255,1818.7,1818.6,4.64111]
[1743286906906,23.07058255,1818.7,1818.5,0.6848]
[1743286907109,1.504,1818.6,1818.5,1.78502]
[1743286907413,1.504,1818.6,1818.5,5.32602]
[1743286908009,21.60998255,1818.7,1818.6,1.10016]
[1743286908707,23.11398255,1818.7,1818.6,1.10016]
[1743286914719,23.11398255,1818.7,1818.6,6.12226]
[1743286930325,20.13250827,1818.7,1818.6,6.12226]
[1743286930721,20.13250827,1818.7,1818.6,8.62226]
[1743286931426,20.13250827,1818.7,1818.6,11.83006]
[1743286931627,2.2138,1819.1,1819.0,1.09992]
[1743286931931,2.2138,1819.1,1819.0,4.63992]
[1743286934221,2.2138,1819.1,1819.0,5.39052]
[1743286936529,1.4941,1819.1,1819.0,5.94092]
[1743286936828,1.4941,1819.1,1819.0,7.36912]
[1743286938331,23.08722234,1819.1,1819.0,7.36912]
[1743286945640,21.59312234,1819.1,1819.0,7.36912]
[1743286952143,21.59312234,1819.1,1819.0,10.57692]
[1743286956052,21.59312234,1819.1,1819.0,7.36912]
[1743286956558,21.59312234,1819.1,1819.0,10.57692]
[1743286956751,22.97972234,1819.1,1819.0,10.57692]
[1743286961051,22.97972234,1819.1,1819.0,1.09992]
[1743286961258,24.78899234,1819.1,1818.8,4.3078]
[1743286961454,24.78899234,1819.1,1818.7,50.803]
[1743286961455,2.52696,1819.0,1818.9,3.537]
[1743286961758,2.52696,1819.0,1818.8,3.537]
[1743286961759,1.1,1818.9,1818.8,3.537]
[1743286961959,1.427,1818.9,1818.8,4.63704]
[1743286962663,2.52698,1818.9,1818.8,3.537]
[1743286964258,2.52698,1818.9,1818.7,51.90308]
[1743286964458,1.1001,1818.7,1818.6,3.537]
[1743286964658,1.4804,1818.8,1818.7,1.1001]
[1743286965162,2.58044,1818.8,1818.7,1.1001]
[1743286965658,1.4804,1818.8,1818.7,1.1001]
[1743286966856,23.07352234,1818.8,1818.7,1.1001]
[1743286967356,24.17356234,1818.8,1818.7,1.1001]
[1743286967557,23.07352234,1818.8,1818.7,1.1001]
[1743286967859,23.07352234,1818.8,1818.6,4.63711]
[1743286968061,1.3895,1818.7,1818.6,4.63711]
[1743286971263,1.3895,1818.7,1818.6,1.10011]
[1743286971461,1.3895,1818.7,1818.6,4.63816]
[1743286976959,1.3895,1818.7,1818.6,5.33146]
[1743286977167,1.3895,1818.7,1818.6,6.71646]
[1743286980665,1.3895,1818.7,1818.6,2.0783]
[1743286980868,2.4896,1818.7,1818.6,3.538]
[1743286981168,1.10022,1818.5,1818.4,3.538]
[1743286981565,1.10028,1818.4,1818.3,3.2078]
[1743286981864,1.10028,1818.4,1818.3,6.7458]
[1743286982067,1.10034,1818.3,1818.2,0.7087]
[1743286982260,1.1004,1818.2,1818.1,50.80824357]
[1743286982465,1.1004,1818.2,1818.1,54.34624357]
[1743286983159,1.5766,1818.3,1818.1,55.44668357]
[1743286983363,2.67699,1818.3,1818.1,55.44668357]
[1743286983564,1.1004,1818.2,1818.1,55.44668357]
[1743286983771,2.4947,1818.2,1818.1,55.44668357]
[1743286983963,2.4947,1818.2,1818.1,54.34624357]
[1743286984165,2.4947,1818.2,1818.1,0.00824357]
[1743286984369,2.4947,1818.2,1818.1,3.54624357]
[1743286993474,1.10046,1818.1,1818.0,0.6806]
[1743286993679,1.10058,1817.9,1817.8,4.9081]
[1743286993874,1.10058,1817.9,1817.8,2.8272]
[1743286994075,1.10058,1817.9,1817.8,0.7222]
[1743286995179,2.51978,1817.9,1817.8,0.7222]
[1743287004187,5.72758,1817.9,1817.8,0.7222]
[1743287009091,5.72758,1817.9,1817.8,2.176]
[1743287009994,5.72758,1817.9,1817.8,0.7222]
[1743287013400,5.72758,1817.9,1817.8,2.1136]
[1743287013601,2.51978,1817.9,1817.8,2.1136]
[1743287013895,5.72758,1817.9,1817.8,2.1136]
[1743287017499,2.51978,1817.9,1817.8,2.1136]
[1743287017700,5.72758,1817.9,1817.8,2.1136]
[1743287019094,5.72758,1817.9,1817.8,0.7222]
[1743287019413,1.10089,1817.4,1817.2,1.10096]
[1743287019701,1.10089,1817.4,1817.3,4.2574]
[1743287019702,4.30869,1817.4,1817.3,4.2574]
[1743287020301,4.30869,1817.4,1817.3,2.1971]
[1743287020607,4.30869,1817.4,1817.3,0.7194]
[1743287022302,4.30869,1817.4,1817.3,1.4715]
[1743287027507,4.30869,1817.4,1817.2,1.48594357]
[1743287027508,1.10095,1817.3,1817.2,1.48594357]
[1743287030005,22.69407234,1817.3,1817.2,1.48594357]
[1743287034715,24.07087234,1817.3,1817.2,1.48594357]
[1743287036819,27.27867234,1817.3,1817.2,1.48594357]
[1743287039520,24.07087234,1817.3,1817.2,1.48594357]
[1743287039717,27.27867234,1817.3,1817.2,1.48594357]
[1743287043019,24.07087234,1817.3,1817.2,1.48594357]
[1743287043316,27.27867234,1817.3,1817.2,1.48594357]
[1743287044020,1.10101,1817.2,1817.1,1.4514]
[1743287044423,2.58701,1817.2,1817.1,1.4514]
[1743287046224,1.486,1817.2,1817.1,2.55247]
[1743287046427,2.58701,1817.2,1817.1,2.55247]
[1743287046618,24.80092234,1817.3,1817.1,1.4514]
[1743287046926,21.59312234,1817.3,1817.2,4.63901]
[1743287048228,22.69395234,1817.5,1817.3,1.10091]
[1743287048528,22.69395234,1817.5,1817.4,0.7292]
[1743287048721,22.69395234,1817.5,1817.4,1.4234]
[1743287051818,25.90175234,1817.5,1817.4,0.7292]
[1743287052018,1.10095,1817.3,1817.2,3.538]
[1743287052330,2.58019,1817.4,1817.2,1.10096]
[1743287052530,2.58027,1817.3,1817.1,1.83984]
[1743287053328,2.58027,1817.3,1817.2,0.6894]
[1743287055221,2.58027,1817.3,1817.2,2.1734]
[1743287062535,1.10101,1817.2,1817.1,0.7388]
[1743287062731,5.76791,1817.2,1817.1,0.7388]
[1743287064737,5.76791,1817.2,1817.1,2.1778]
[1743287065638,2.56011,1817.2,1817.1,2.1778]
[1743287070432,5.76791,1817.2,1817.1,2.1778]
[1743287075348,3.2078,1817.4,1817.3,1.10095]
[1743287075948,3.2078,1817.4,1817.3,5.99965]
[1743287076146,22.69397234,1817.5,1817.3,5.99965]
[1743287076343,22.69397234,1817.5,1817.4,1.3617]
[1743287077951,1.10093,1817.4,1817.3,3.537]
[1743287078146,2.47983,1817.4,1817.3,4.8987]
[1743287078746,2.47983,1817.4,1817.3,3.537]
[1743287078946,1.10095,1817.3,1817.2,4.2756]
[1743287079140,5.72205,1817.3,1817.2,4.2756]
[1743287079551,2.51425,1817.3,1817.2,4.2756]
[1743287079950,2.51425,1817.3,1817.2,5.6372]
[1743287080955,2.51425,1817.3,1817.2,2.1002]
[1743287081255,2.51425,1817.3,1817.2,3.20121]
[1743287081547,3.2078,1817.5,1817.2,3.20121]
[1743287081751,1.4133,1817.4,1817.3,2.46254]
[1743287081949,2.51419,1817.4,1817.3,1.10094]
[1743287083249,1.4133,1817.4,1817.3,1.10094]
[1743287083753,1.10083,1817.5,1817.4,1.10089]
[1743287083959,2.61142,1817.6,1817.4,1.10089]
[1743287084152,2.61142,1817.6,1817.5,0.73]
[1743287089757,5.81922,1817.6,1817.5,0.73]
[1743287091049,2.61142,1817.6,1817.5,0.73]
[1743287092560,4.7184,1817.6,1817.5,1.83083]
[1743287092759,1.5106,1817.6,1817.5,0.73]
[1743287093158,2.61137,1817.6,1817.5,0.73]
[1743287095056,5.81917,1817.6,1817.5,3.21703]
[1743287095253,2.61137,1817.6,1817.5,3.21703]
[1743287095454,2.61137,1817.6,1817.5,2.1162]
[1743287095655,2.61137,1817.6,1817.5,3.21703]
[1743287096555,2.61137,1817.6,1817.5,2.1162]
[1743287098162,5.81917,1817.6,1817.5,2.1162]
[1743287099859,5.81917,1817.6,1817.5,0.73]
[1743287102958,4.7184,1817.6,1817.2,1.10097]
[1743287103163,4.30873,1817.4,1817.3,3.536]
[1743287103359,1.10095,1817.3,1817.2,2.8702]
[1743287103562,1.4389,1817.3,1817.0,0.00824357]
[1743287103767,1.10107,1817.1,1817.0,0.00824357]
[1743287104166,3.26037,1817.1,1817.0,0.00824357]
[1743287108265,6.46817,1817.1,1817.0,0.00824357]
[1743287110668,3.26037,1817.1,1817.0,0.00824357]
[1743287111068,6.46817,1817.1,1817.0,0.00824357]
[1743287116080,3.26037,1817.1,1817.0,0.00824357]
[1743287116276,6.46817,1817.1,1817.0,0.00824357]
[1743287121190,3.26037,1817.1,1817.0,0.00824357]
[1743287121378,6.46817,1817.1,1817.0,0.00824357]
[1743287121783,1.10131,1816.7,1816.6,3.536]
[1743287122085,1.10137,1816.6,1816.5,1.43]
[1743287122391,2.52737,1816.6,1816.5,2.8343]
[1743287124890,24.10932528,1816.6,1816.5,2.8343]
[1743287134888,23.00795528,1816.6,1816.5,3.93573]
[1743287135094,21.58195528,1816.6,1816.5,3.93573]
[1743287144292,0.00824357,1816.7,1816.6,1.10137]
[1743287144497,0.00824357,1816.7,1816.6,2.47467]
[1743287146400,1.50274357,1816.7,1816.6,2.47467]
[1743287154600,0.00824357,1816.7,1816.6,4.97467]
[1743287154905,21.58195528,1816.9,1816.8,1.10125]
[1743287155101,21.58195528,1816.9,1816.8,4.63625]
[1743287155704,21.58195528,1816.9,1816.8,6.76195]
[1743287156199,2.59069,1816.9,1816.8,5.33145]
[1743287156906,1.4895,1816.9,1816.8,5.33145]
[1743287157503,1.4895,1816.9,1816.8,6.76195]
[1743287158108,1.4895,1816.9,1816.8,7.48575]
[1743287160211,1.4895,1816.9,1816.5,0.5512]
[1743287160512,1.10131,1816.7,1816.6,3.534]
[1743287160910,2.58041,1816.7,1816.6,1.10137]
[1743287164804,2.58041,1816.7,1816.5,6.13869]
[1743287165008,1.4802,1816.6,1816.5,6.13869]
[1743287168614,21.59019885,1817.0,1816.8,1.10123]
[1743287168807,1.10121,1816.9,1816.6,1.4682]
[1743287169012,1.10121,1816.9,1816.8,1.10123]
[1743287170116,1.4717,1816.9,1816.8,2.56943]
[1743287170519,1.4717,1816.9,1816.8,6.10343]
[1743287172614,2.57289,1816.9,1816.8,3.534]
[1743287173015,1.10125,1816.8,1816.7,1.4195]
[1743287173317,2.47585,1816.8,1816.7,4.9535]
[1743287173617,2.47585,1816.8,1816.7,6.05481]
[1743287174716,1.3746,1816.8,1816.5,4.63538]
[1743287174916,1.10137,1816.6,1816.5,7.41768]
[1743287175612,1.5054,1816.7,1816.5,7.41768]
[1743287175613,2.60676,1816.7,1816.5,7.41768]
[1743287175919,1.5054,1816.7,1816.6,1.10137]
[1743287176220,24.79799885,1817.0,1816.8,1.10122]
[1743287176411,22.69134885,1817.0,1816.8,3.534]
[1743287176608,22.69134885,1817.0,1816.9,2.9688]
[1743287185616,1.10939357,1817.0,1816.9,2.9688]
[1743287187923,1.10939357,1817.0,1816.9,4.06999]
[1743287188126,0.00824357,1817.0,1816.9,4.06999]
[1743287190129,1.10937357,1817.0,1816.9,2.9688]
[1743287192328,1.10937357,1817.0,1816.9,4.06999]
[1743287192625,1.10937357,1817.0,1816.9,2.9688]
[1743287194623,1.10937357,1817.0,1816.9,4.06999]
[1743287197932,0.00824357,1817.0,1816.9,4.06999]
[1743287199637,1.10937357,1817.0,1816.9,4.06999]
[1743287200737,0.00824357,1817.0,1816.9,4.06999]
[1743287201128,3.2078,1817.2,1817.1,1.10107]
[1743287201432,3.2078,1817.2,1817.1,4.63307]
[1743287201633,1.4108,1817.2,1817.1,4.63307]
[1743287202129,1.10107,1817.1,1817.0,1.3836]
[1743287202334,1.10107,1817.1,1817.0,3.532]
[1743287202534,2.51187,1817.1,1817.0,3.532]
[1743287204431,2.51187,1817.1,1817.0,4.63313]
[1743287204630,2.51187,1817.1,1817.0,4.9231]
[1743287207532,2.51187,1817.1,1817.0,6.02423]
[1743287208237,2.51187,1817.1,1817.0,4.9231]
[1743287208634,2.51187,1817.1,1817.0,6.02423]
[1743287210930,1.4108,1817.1,1817.0,6.02423]
[1743287211635,2.51187,1817.1,1817.0,6.02423]
[1743287213626,1.4108,1817.1,1817.0,6.02423]
[1743287215141,2.51187,1817.1,1817.0,6.02423]
[1743287218035,1.4108,1817.1,1816.6,1.10135]
[1743287218341,8.29853,1817.0,1816.6,3.532]
[1743287218542,1.10131,1816.7,1816.6,3.532]
[1743287218840,1.4363,1816.9,1816.6,3.532]
[1743287219138,1.4363,1816.9,1816.7,1.81989]
[1743287219334,1.10125,1816.8,1816.7,3.20361]
[1743287219543,1.10125,1816.8,1816.7,2.1023]
[1743287220143,1.10125,1816.8,1816.7,3.20361]
[1743287220331,1.4363,1816.9,1816.8,1.10125]
[1743287220536,2.53749,1816.9,1816.8,2.095]
[1743287221242,2.53749,1816.9,1816.8,3.19625]
[1743287221742,1.4363,1816.9,1816.8,3.19625]
[1743287222041,1.10109,1817.1,1817.0,1.10113]
[1743287222241,1.4551,1817.1,1817.0,1.10113]
[1743287222633,1.4551,1817.1,1817.0,2.52833]
[1743287223029,2.55617,1817.1,1817.0,2.52833]
[1743287224043,2.55617,1817.1,1817.0,1.4272]
[1743287224943,1.10113,1817.0,1816.9,4.63315]
[1743287225143,2.47373,1817.0,1816.9,3.532]
[1743287225844,1.3726,1817.0,1816.9,4.63319]
[1743287226039,1.3726,1817.0,1816.9,6.03919]
[1743287227641,2.47373,1817.0,1816.9,4.938]
[1743287228635,2.47373,1817.0,1816.9,6.03919]
[1743287229939,1.3726,1817.0,1816.9,6.03919]
[1743287230442,2.47373,1817.0,1816.9,6.03919]
[1743287230843,2.47373,1817.0,1816.9,4.938]
[1743287231544,2.47373,1817.0,1816.9,6.03919]
[1743287232543,2.47373,1817.0,1816.9,1.406]
[1743287232743,1.10119,1816.9,1816.8,4.2423]
[1743287233042,1.4314,1816.9,1816.6,4.30912]
[1743287233241,1.10131,1816.7,1816.6,6.44592]
[1743287233548,1.10129,1816.8,1816.6,9.97692]
[1743287233750,1.4314,1816.7,1816.6,9.97692]
[1743287234042,2.53271,1816.7,1816.6,8.53312]
[1743287234845,1.4314,1816.7,1816.6,8.53312]
[1743287235040,1.4314,1816.7,1816.6,5.32532]
[1743287235343,1.4314,1816.7,1816.6,8.53312]
[1743287236340,1.4314,1816.7,1816.6,5.32532]
[1743287240944,1.10124,1816.9,1816.8,1.10125]
[1743287241152,1.10124,1816.9,1816.7,0.7104]
[1743287241347,1.10124,1816.9,1816.7,1.81167]
[1743287242561,2.58014,1816.9,1816.7,1.81167]
[1743287242963,2.58014,1816.9,1816.8,1.10125]
[1743287243262,2.58014,1816.9,1816.7,1.81167]
[1743287243762,2.58014,1816.9,1816.8,1.10125]
[1743287244962,2.58014,1816.9,1816.8,2.49935]
[1743287245861,1.10119,1816.9,1816.8,1.3981]
[1743287246059,2.51179,1816.9,1816.8,2.49933]
[1743287246259,2.51179,1816.9,1816.8,1.10123]
[1743287246565,2.51179,1816.9,1816.8,2.60783]
[1743287246865,2.51179,1816.9,1816.8,1.5066]
[1743287247163,2.51179,1816.9,1816.8,2.60785]
[1743287251367,2.51179,1816.9,1816.8,1.5066]
[1743287251568,2.51179,1816.9,1816.8,1.10125]
[1743287252165,2.51179,1816.9,1816.8,2.54495]
[1743287252968,1.4106,1816.9,1816.8,2.54495]
[1743287253472,2.51179,1816.9,1816.8,2.54495]
[1743287255873,2.51179,1816.9,1816.8,1.4437]
[1743287256969,1.10125,1816.8,1816.7,0.7104]
[1743287257168,1.10131,1816.7,1816.6,0.693]
[1743287257574,2.56781,1816.7,1816.6,0.693]
[1743287260878,1.10127,1816.8,1816.7,1.10131]
[1743287261178,1.10127,1816.8,1816.6,3.20193]
[1743287261479,1.10127,1816.8,1816.7,2.50891]
[1743287262776,1.10127,1816.8,1816.7,1.4076]
[1743287263580,4.30897,1817.0,1816.8,1.10125]